lending/lending_fUSD_20251022
["ID","MTS","AMOUNT","RATE_DAILY","PERIOD"]
[392107338,1761165032356,-11.18685871,0.00040487,5]
[392107339,1761165032368,-1339.14935823,0.00040487,5]
[392107340,1761165032380,-849.66378306,0.00040487,5]
[392107341,1761165032390,-150.0,0.00040488,4]
[392107342,1761165032399,-150.0,0.00040488,4]
[392107343,1761165032410,-150.0,0.00040488,4]
[392107344,1761165032420,-260.71700305,0.00040488,4]
[392107345,1761165032430,-150.00000001,0.00040488,4]
[392107346,1761165032440,-150.00000001,0.00040488,4]
[392107347,1761165032451,-220.93837237,0.00040488,4]
[392107348,1761165032464,-476.0,0.00041073,5]
[392107349,1761165032476,-500.0,0.00041074,30]
[392107350,1761165032485,-677.75024446,0.000411,2]
[392107351,1761165032496,-168.0,0.00041241,2]
[392107352,1761165032505,-1345.64189001,0.00041259,2]
[392107353,1761165032514,-818.10163414,0.00041286,30]
[392107354,1761165032523,-168.0,0.00041303,2]
[392107355,1761165032533,-862.76548151,0.00041383,2]
[392107356,1761165032543,-168.0,0.0004165,2]
[392107357,1761165032552,-1500.0,0.000419,2]
[392107359,1761165032561,-168.0,0.00042516,2]
[392107361,1761165032570,-3080.0,0.00043321,5]
[392107363,1761165032580,-200.0,0.00043436,2]
[392107366,1761165032588,-1195.85,0.00043476,2]
[392107367,1761165032598,-1000.0,0.00043601,2]
[392107368,1761165032607,-949.74,0.00043616,30]
[392107369,1761165032616,-696.1,0.00043616,30]
[392107370,1761165032626,-1827.7,0.00043671,120]
[392107371,1761165032636,-168.0,0.00043693,2]
[392107372,1761165032656,-160.8386421,0.00043836,2]
[392107373,1761165032667,-818.0,0.00043852,2]
[392107374,1761165032676,-6536.0,0.00043852,2]
[392107375,1761165032687,-3411.0,0.00043852,2]
[392107376,1761165032697,-268.248,0.00043878,69]
[392107377,1761165032707,-168.0,0.00043878,2]
[392107378,1761165032717,-252.06674067,0.00043922,15]
[392107379,1761165032727,-195.37285479,0.00043999,120]
[392107380,1761165032737,-418.88960509,0.00043999,120]
[392107381,1761165032747,-500.0,0.00043999,2]
[392107382,1761165032757,-500.0,0.00043999,120]
[392107383,1761165032767,-14349.6985348,0.00044,120]
[392107384,1761165032777,-9801.0,0.00044,5]
[392107385,1761165032787,-11988.0,0.00044,120]
[392107386,1761165032797,-122696.5552112,0.00044,2]
[392107387,1761165032807,-483.15,0.00044023,7]
[392107388,1761165032817,-1200.82,0.00044027,30]
[392107389,1761165032827,-1200.82,0.00044027,30]
[392107390,1761165032836,-1200.82,0.00044027,30]
[392107391,1761165032846,-252.06674064,0.00044031,15]
[392107392,1761165032857,-252.06674064,0.00044139,15]
[392107393,1761165032867,-252.06674064,0.00044248,15]
[392107394,1761165032877,-700.0,0.000443,16]
[392107395,1761165032886,-252.06674064,0.00044357,15]
[392107396,1761165032896,-1400.0,0.000444,16]
[392107397,1761165032906,-252.06674064,0.00044465,15]
[392107398,1761165032916,-2100.0,0.000445,16]
[392107399,1761165032926,-3868.06376101,0.0004451,14]
[392107400,1761165032936,-167.84,0.00044548,30]
[392107401,1761165032946,-252.06674064,0.00044574,15]
[392107402,1761165032955,-696.1,0.00044575,30]
[392107403,1761165032965,-206.0,0.00044594,2]
[392107404,1761165032975,-2900.0,0.000446,16]
[392107405,1761165032985,-252.06674064,0.00044683,15]
[392107406,1761165032995,-1600.0,0.000447,16]
[392107407,1761165033006,-3600.0,0.000447,16]
[392107408,1761165033016,-5526.20234134,0.000447,2]
[392107409,1761165033025,-200.0,0.00044713,60]
[392107410,1761165033035,-200.0,0.00044713,60]
[392107411,1761165033045,-150.0,0.00044713,60]
[392107412,1761165033055,-150.0,0.00044713,60]
[392107413,1761165033065,-231.3807159,0.00044713,60]
[392107414,1761165033075,-150.0,0.00044713,60]
[392107415,1761165033085,-6622.3695,0.00044732,2]
[392107416,1761165033094,-1968.44976482,0.00044732,16]
[392107417,1761165033104,-1589.83756368,0.00044732,15]
[392107418,1761165033113,-1589.83756365,0.00044751,15]
[392107419,1761165033124,-16383.9747439,0.00044757,3]
[392107420,1761165033133,-13451.89625193,0.00044767,120]
[392107421,1761165033147,-4378.00374807,0.00044767,120]
[392107422,1761165033156,-1589.83756365,0.00044769,15]
[392107423,1761165033166,-1589.83756365,0.00044788,15]
[392107424,1761165033175,-252.06674064,0.00044791,15]
[392107425,1761165033190,-924.39405687,0.00044794,2]
[392107426,1761165033199,-300.0,0.000448,16]
[392107427,1761165033209,-500.0,0.000448,2]
[392107428,1761165033218,-1000.0,0.000448,14]
[392107429,1761165033229,-700.0,0.000448,16]
[392107430,1761165033238,-1589.83756365,0.00044807,15]
[392107431,1761165033248,-297.31804,0.0004481,25]
[392107432,1761165033258,-151.0,0.00044818,120]
[392107433,1761165033267,-16383.9747439,0.00044822,3]
[392107434,1761165033277,-1589.83756365,0.00044825,15]
[392107435,1761165033286,-1311.0,0.00044831,2]
[392107436,1761165033296,-605.0,0.00044831,2]
[392107437,1761165033306,-1591.0,0.00044831,2]
[392107438,1761165033315,-97.71604248,0.00044831,2]
[392107439,1761165033328,-1171.28395752,0.00044831,2]
[392107440,1761165033337,-817.0,0.00044831,2]
[392107441,1761165033347,-1131.392,0.00044831,2]
[392107442,1761165033357,-903.0,0.00044831,2]
[392107443,1761165033366,-1184.0,0.00044831,2]
[392107444,1761165033375,-1589.83756365,0.00044844,15]
[392107445,1761165033385,-8191.98737195,0.00044851,3]
[392107446,1761165033395,-20014.9972454,0.00044861,2]
[392107447,1761165033404,-1589.83756365,0.00044863,15]
[392107448,1761165033414,-8191.98737195,0.00044869,3]
[392107449,1761165033424,-173.09670763,0.0004487,28]
[392107450,1761165033434,-5000.0,0.00044879,120]
[392107451,1761165033443,-1589.83756365,0.00044881,15]
[392107452,1761165033455,-8191.98737195,0.00044884,3]
[392107453,1761165033464,-11296.7693,0.0004489,2]
[392107454,1761165033473,-3492.04779817,0.0004489,3]
[392107455,1761165033488,-1653.42497593,0.0004489,3]
[392107456,1761165033504,-370.52181997,0.0004489,3]
[392107457,1761165033515,-1075.43,0.0004489,3]
[392107458,1761165033611,-2449.22224634,0.0004489,3]
[392107459,1761165035718,1531.55241637,0.0002,30]
[392107462,1761165038092,-500.0,0.00043852,2]
[392107463,1761165038104,-2092.0,0.00043852,2]
[392107464,1761165038113,-263.28187387,0.000439,2]
[392107465,1761165038123,-1224.90838128,0.0004489,3]
[392107466,1761165038135,-2770.18958386,0.0004489,3]
[392107467,1761165038146,-564.91648738,0.0004489,3]
[392107468,1761165038157,-1021.4977046,0.0004489,3]
[392107469,1761165038213,-1139.7,0.0004489,3]
[392107470,1761165038225,-66158.01472197,0.0004489,3]
[392107471,1761165038234,-823.60607501,0.00044899,30]
[392107472,1761165038243,-500.0,0.00044899,120]
[392107473,1761165038253,-500.0,0.00044899,120]
[392107474,1761165038263,-1592.09,0.00044899,120]
[392107475,1761165038272,-500.0,0.00044899,120]
[392107476,1761165038281,-500.0,0.00044899,120]
[392107477,1761165038291,-500.0,0.00044899,120]
[392107478,1761165038300,-500.0,0.00044899,120]
[392107479,1761165038310,-500.0,0.00044899,120]
[392107480,1761165038319,-500.0,0.00044899,120]
[392107482,1761165038328,-500.0,0.00044899,120]
[392107483,1761165038337,-500.0,0.00044899,120]
[392107486,1761165038347,-500.0,0.00044899,120]
[392107487,1761165038356,-500.0,0.00044899,120]
[392107490,1761165038366,-500.0,0.00044899,3]
[392107491,1761165038375,-500.0,0.00044899,120]
[392107493,1761165038385,-500.0,0.00044899,120]
[392107495,1761165038393,-504.59684651,0.00044899,120]
[392107497,1761165038403,-500.0,0.00044899,120]
[392107499,1761165038412,-500.0,0.00044899,120]
[392107501,1761165038420,-537.54882742,0.00044899,120]
[392107502,1761165038429,-358.04248001,0.00044899,120]
[392107504,1761165038439,-500.0,0.00044899,120]
[392107506,1761165038448,-500.0,0.00044899,120]
[392107508,1761165038461,-500.0,0.00044899,120]
[392107509,1761165038470,-500.0,0.00044899,120]
[392107511,1761165038479,-500.0,0.00044899,120]
[392107513,1761165038488,-500.0,0.00044899,120]
[392107514,1761165038498,-300.0,0.000449,16]
[392107515,1761165038508,-216.60276416,0.000449,17]
[392107516,1761165038517,-146170.8799,0.000449,60]
[392107517,1761165038527,-700.0,0.000449,16]
[392107518,1761165038537,-202.92757202,0.000449,2]
[392107519,1761165038547,-351.386362,0.000449,27]
[392107520,1761165038555,-221.96850269,0.000449,2]
[392107521,1761165038565,-1589.83756365,0.000449,15]
[392107522,1761165038574,-252.06674064,0.000449,15]
[392107523,1761165038583,-173.09670763,0.0004494,28]
[392107524,1761165038592,-500.0,0.00044955,120]
[392107525,1761165038601,-32767.9494878,0.0004496,3]
[392107526,1761165038611,-16383.9747439,0.0004496,3]
[392107527,1761165038620,-7068.44843562,0.00044961,3]
[392107528,1761165038631,-352.99641641,0.00044961,3]
[392107529,1761165038642,-1239.83134128,0.00044961,3]
[392107530,1761165038665,-7722.69855059,0.00044961,3]
[392107531,1761165038673,-1813.0,0.00044967,7]
[392107532,1761165038683,-16383.9747439,0.00044968,3]
[392107533,1761165038694,-7986.82308261,0.00044968,3]
[392107534,1761165038703,-2993.5036279,0.00044968,3]
[392107535,1761165038715,-13390.471116,0.00044968,3]
[392107536,1761165038725,-7986.82308261,0.00044968,3]
[392107537,1761165038735,-8191.98737195,0.00044969,3]
[392107538,1761165038744,-7986.82308261,0.00044969,3]
[392107539,1761165038755,-7986.82308261,0.00044969,3]
[392107540,1761165038765,-7986.82308261,0.00044969,3]
[392107541,1761165038775,-800.0,0.0004497,3]
[392107542,1761165038785,-7986.82308261,0.0004497,3]
[392107543,1761165038795,-500.0,0.0004497,120]
[392107544,1761165038804,-39934.115413,0.00044971,3]
[392107545,1761165038814,-500.0,0.00044973,10]
[392107546,1761165038823,-500.0,0.00044973,10]
[392107547,1761165038833,-500.0,0.00044976,120]
[392107548,1761165038843,-500.0,0.00044976,120]
[392107549,1761165038854,-15973.6461652,0.00044978,3]
[392107550,1761165038864,-15973.6461652,0.00044979,3]
[392107551,1761165038875,-500.0,0.00044979,120]
[392107552,1761165038885,-500.0,0.00044979,120]
[392107553,1761165038894,-500.0,0.00044979,120]
[392107554,1761165038903,-548.81130462,0.00044979,120]
[392107555,1761165038913,-500.0,0.00044979,120]
[392107556,1761165038922,-500.0,0.00044979,120]
[392107557,1761165038931,-500.0,0.00044979,120]
[392107558,1761165038940,-500.0,0.00044979,120]
[392107559,1761165038950,-500.0,0.00044979,120]
[392107560,1761165038959,-500.0,0.00044979,120]
[392107561,1761165038968,-500.0,0.00044979,120]
[392107562,1761165038979,-500.0,0.00044979,120]
[392107563,1761165038988,-226.98,0.00044979,120]
[392107564,1761165038997,-1592.09,0.00044979,120]
[392107565,1761165039007,-443.89,0.00044979,120]
[392107566,1761165039016,-500.0,0.00044979,120]
[392107567,1761165039026,-500.0,0.00044979,120]
[392107568,1761165039036,-500.0,0.00044979,120]
[392107569,1761165039045,-500.0,0.00044979,120]
[392107570,1761165039054,-500.0,0.00044979,120]
[392107571,1761165039063,-500.0,0.00044979,120]
[392107572,1761165039072,-500.0,0.00044979,120]
[392107573,1761165039082,-500.0,0.00044979,3]
[392107574,1761165039091,-7986.82308261,0.00044979,3]
[392107575,1761165039101,-65003.42396837,0.0004498,3]
[392107576,1761165039113,-615.98464688,0.0004498,3]
[392107580,1761165040721,-1.6e-07,0.00044174,2]
[392107592,1761165040862,-263.28187371,0.00044174,2]
[392107594,1761165040872,-6261.99912825,0.0004498,3]
[392107596,1761165040881,-500.0,0.0004498,120]
[392107598,1761165040891,-189.48843897,0.0004498,2]
[392107600,1761165040900,-1592.09,0.0004498,120]
[392107602,1761165040911,-500.0,0.0004498,120]
[392107604,1761165040920,-500.0,0.0004498,120]
[392107606,1761165040929,-581.63,0.0004498,120]
[392107608,1761165040939,-542.43156452,0.0004498,120]
[392107609,1761165040949,-500.0,0.0004498,120]
[392107610,1761165040958,-491.86,0.0004498,120]
[392107611,1761165040968,-126.3191822,0.0004498,120]
[392107612,1761165040979,-373.6808178,0.0004498,120]
[392107613,1761165040989,-500.0,0.0004498,120]
[392107614,1761165040998,-7986.82308261,0.0004498,3]
[392107615,1761165041008,-1861.1951343,0.00044981,2]
[392107616,1761165041017,-73337.2435089,0.00044981,2]
[392107617,1761165041027,-1199.4797455,0.00044981,2]
[392107618,1761165041036,-500.0,0.00044987,120]
[392107619,1761165041045,-500.0,0.00044987,120]
[392107620,1761165041055,-200.0,0.00044988,120]
[392107621,1761165041064,-293.19711071,0.00044988,120]
[392107622,1761165041074,-200.0,0.00044988,120]
[392107623,1761165041083,-200.0,0.00044988,120]
[392107624,1761165041092,-200.0,0.00044988,120]
[392107625,1761165041101,-500.0,0.00044988,120]
[392107626,1761165041110,-1000.0,0.00044988,120]
[392107627,1761165041120,-1000.0,0.00044988,120]
[392107628,1761165041129,-500.0,0.00044988,120]
[392107629,1761165041138,-1000.0,0.00044988,120]
[392107630,1761165041148,-1000.0,0.00044988,120]
[392107631,1761165041157,-1000.0,0.00044988,120]
[392107632,1761165041166,-228.0639938,0.00044988,120]
[392107633,1761165041176,-500.0,0.00044988,120]
[392107634,1761165041185,-500.0,0.00044988,120]
[392107635,1761165041194,-250.0,0.00044988,120]
[392107636,1761165041203,-1000.0,0.00044988,120]
[392107637,1761165041212,-500.0,0.00044988,120]
[392107638,1761165041222,-250.0,0.00044988,120]
[392107639,1761165041231,-500.0,0.00044988,120]
[392107640,1761165041241,-1000.0,0.00044988,120]
[392107641,1761165041250,-500.0,0.00044988,120]
[392107642,1761165041259,-1000.0,0.00044988,120]
[392107643,1761165041269,-500.0,0.00044988,120]
[392107644,1761165041278,-151.0,0.00044988,120]
[392107645,1761165041288,-297.37581837,0.00044988,120]
[392107646,1761165041297,-151.0,0.00044988,120]
[392107647,1761165041306,-151.0,0.00044988,120]
[392107648,1761165041316,-151.0,0.00044988,120]
[392107649,1761165041325,-151.0,0.00044988,120]
[392107650,1761165041334,-600.0,0.00044988,120]
[392107651,1761165041343,-151.0,0.00044988,120]
[392107652,1761165041351,-600.0,0.00044988,120]
[392107653,1761165041360,-600.0,0.00044988,120]
[392107654,1761165041370,-207.8102271,0.00044988,120]
[392107655,1761165041379,-600.0,0.00044988,120]
[392107656,1761165041388,-500.0,0.00044988,120]
[392107657,1761165041397,-600.0,0.00044988,120]
[392107658,1761165041406,-500.0,0.00044988,120]
[392107659,1761165041415,-600.0,0.00044988,120]
[392107660,1761165041424,-500.0,0.00044988,120]
[392107661,1761165041433,-600.0,0.00044988,120]
[392107662,1761165041443,-250.0,0.00044988,120]
[392107663,1761165041454,-500.0,0.00044988,120]
[392107664,1761165041465,-600.0,0.00044988,120]
[392107665,1761165041476,-250.0,0.00044988,120]
[392107666,1761165041486,-500.0,0.00044988,120]
[392107667,1761165041497,-151.0,0.00044988,120]
[392107668,1761165041507,-600.0,0.00044988,120]
[392107669,1761165041516,-250.0,0.00044988,120]
[392107670,1761165041526,-500.0,0.00044988,120]
[392107671,1761165041536,-156.587,0.00044988,120]
[392107672,1761165041545,-600.0,0.00044988,120]
[392107673,1761165041555,-250.0,0.00044988,120]
[392107674,1761165041564,-500.0,0.00044988,120]
[392107675,1761165041573,-600.0,0.00044988,120]
[392107676,1761165041582,-162.380719,0.00044988,120]
[392107677,1761165041591,-250.0,0.00044988,120]
[392107678,1761165041600,-168.3888056,0.00044988,120]
[392107679,1761165041609,-600.0,0.00044988,120]
[392107680,1761165041619,-500.0,0.00044988,120]
[392107681,1761165041629,-250.0,0.00044988,120]
[392107682,1761165041638,-174.61919141,0.00044988,120]
[392107683,1761165041647,-600.0,0.00044988,120]
[392107684,1761165041656,-250.0,0.00044988,120]
[392107685,1761165041665,-600.0,0.00044988,120]
[392107686,1761165041675,-181.08010149,0.00044988,120]
[392107687,1761165041683,-250.0,0.00044988,120]
[392107688,1761165041693,-600.0,0.00044988,120]
[392107689,1761165041702,-250.0,0.00044988,120]
[392107690,1761165041712,-250.0,0.00044988,120]
[392107691,1761165041721,-250.0,0.00044988,120]
[392107692,1761165041730,-211.01319552,0.00044988,120]
[392107693,1761165041740,-520.0,0.00044988,120]
[392107694,1761165041749,-539.24,0.00044988,120]
[392107695,1761165041759,-559.19188,0.00044988,120]
[392107696,1761165041768,-579.88197956,0.00044988,120]
[392107697,1761165041778,-601.3376128,0.00044988,120]
[392107698,1761165041788,-623.58710448,0.00044988,120]
[392107699,1761165041798,-646.65982734,0.00044988,120]
[392107700,1761165041809,-670.58624095,0.00044988,120]
[392107701,1761165041818,-695.39793187,0.00044988,120]
[392107702,1761165041827,-721.12765535,0.00044988,120]
[392107703,1761165041835,-747.8093786,0.00044988,120]
[392107704,1761165041845,-775.47832561,0.00044988,120]
[392107705,1761165041854,-276.7530595,0.00044988,120]
[392107706,1761165041863,-151.0,0.00044988,120]
[392107707,1761165041874,-151.0,0.00044988,120]
[392107708,1761165041885,-151.0,0.00044988,120]
[392107709,1761165041895,-1000.0,0.00044988,120]
[392107710,1761165041905,-1000.0,0.00044988,120]
[392107711,1761165041916,-1000.0,0.00044988,120]
[392107712,1761165041926,-1000.0,0.00044988,120]
[392107713,1761165041936,-1000.0,0.00044988,120]
[392107714,1761165041945,-1000.0,0.00044988,120]
[392107715,1761165041954,-1000.0,0.00044988,120]
[392107716,1761165041964,-1000.0,0.00044988,120]
[392107717,1761165041973,-1000.0,0.00044988,120]
[392107718,1761165041983,-1000.0,0.00044988,120]
[392107719,1761165041995,-1000.0,0.00044988,120]
[392107720,1761165042005,-1000.0,0.00044988,120]
[392107721,1761165042015,-1000.0,0.00044988,120]
[392107722,1761165042025,-615.26981955,0.00044988,120]
[392107723,1761165042034,-23960.4692478,0.00044989,3]
[392107724,1761165042045,-200.0,0.00044989,7]
[392107725,1761165042055,-500.0,0.00044989,120]
[392107726,1761165042064,-591.59242,0.00044989,120]
[392107727,1761165042073,-500.0,0.00044989,120]
[392107728,1761165042081,-511.3404377,0.00044989,120]
[392107729,1761165042091,-200.0,0.00044989,7]
[392107730,1761165042100,-500.0,0.00044989,120]
[392107731,1761165042111,-500.0,0.00044989,120]
[392107732,1761165042120,-500.0,0.00044989,120]
[392107733,1761165042131,-297.31803,0.00044989,26]
[392107734,1761165042140,-1592.09,0.00044989,120]
[392107735,1761165042150,-500.0,0.00044989,120]
[392107736,1761165042159,-500.0,0.00044989,120]
[392107737,1761165042168,-500.0,0.00044989,120]
[392107738,1761165042177,-500.0,0.00044989,120]
[392107739,1761165042187,-500.0,0.00044989,120]
[392107740,1761165042197,-500.0,0.00044989,120]
[392107741,1761165042206,-151.0,0.00044989,14]
[392107742,1761165042215,-151.0,0.00044989,14]
[392107743,1761165042226,-39934.115413,0.0004499,3]
[392107744,1761165042236,-150.63,0.0004499,2]
[392107745,1761165042247,-232.24674381,0.0004499,7]
[392107746,1761165042258,-150.63,0.0004499,2]
[392107747,1761165042267,-150.63,0.0004499,2]
[392107748,1761165042276,-150.63,0.0004499,2]
[392107749,1761165042285,-150.63,0.0004499,2]
[392107750,1761165042294,-150.63,0.0004499,2]
[392107751,1761165042303,-232.24674381,0.0004499,7]
[392107752,1761165042312,-232.24674381,0.0004499,7]
[392107753,1761165042321,-184.53333602,0.00044999,120]
[392107754,1761165042331,-1592.09,0.00044999,120]
[392107755,1761165042340,-1592.09,0.00044999,120]
[392107756,1761165042350,-1592.09,0.00044999,120]
[392107757,1761165042359,-1592.09,0.00044999,120]
[392107758,1761165042367,-1592.09,0.00044999,120]
[392107759,1761165042376,-1592.09,0.00044999,120]
[392107760,1761165042386,-1592.09,0.00044999,120]
[392107761,1761165042395,-1592.09,0.00044999,120]
[392107762,1761165042404,-1592.09,0.00044999,120]
[392107763,1761165042413,-1592.09,0.00044999,120]
[392107764,1761165042423,-1592.09,0.00044999,120]
[392107765,1761165042432,-1592.09,0.00044999,120]
[392107766,1761165042444,-1592.09,0.00044999,120]
[392107767,1761165042456,-1592.09,0.00044999,120]
[392107768,1761165042465,-1592.09,0.00044999,120]
[392107769,1761165042474,-1592.09,0.00044999,120]
[392107770,1761165042484,-1592.09,0.00044999,120]
[392107771,1761165042494,-1592.09,0.00044999,120]
[392107772,1761165042504,-1592.09,0.00044999,120]
[392107773,1761165042513,-1592.16057848,0.00044999,120]
[392107774,1761165042523,-500.0,0.00044999,120]
[392107775,1761165042533,-594.66009382,0.00044999,120]
[392107776,1761165042542,-621.8137669,0.00044999,120]
[392107777,1761165042551,-500.0,0.00044999,120]
[392107778,1761165042560,-500.0,0.00044999,120]
[392107779,1761165042569,-500.0,0.00044999,120]
[392107780,1761165042578,-500.01,0.00044999,120]
[392107781,1761165042587,-500.0,0.00044999,120]
[392107782,1761165042596,-500.0,0.00044999,120]
[392107783,1761165042605,-500.0,0.00044999,120]
[392107784,1761165042614,-500.0,0.00044999,120]
[392107785,1761165042623,-500.0,0.00044999,120]
[392107786,1761165042631,-500.0,0.00044999,120]
[392107787,1761165042641,-500.0,0.00044999,120]
[392107788,1761165042650,-500.0,0.00044999,120]
[392107789,1761165042659,-500.0,0.00044999,120]
[392107790,1761165042668,-500.0,0.00044999,120]
[392107791,1761165042677,-500.0,0.00044999,120]
[392107792,1761165042687,-500.0,0.00044999,120]
[392107793,1761165042699,-500.0,0.00044999,120]
[392107794,1761165042708,-500.0,0.00044999,120]
[392107795,1761165042717,-241.16,0.00044999,120]
[392107796,1761165042726,-500.0,0.00044999,120]
[392107797,1761165042735,-500.0,0.00044999,120]
[392107798,1761165042744,-500.0,0.00044999,120]
[392107799,1761165042753,-500.0,0.00044999,120]
[392107800,1761165042762,-500.0,0.00044999,120]
[392107801,1761165042771,-500.0,0.00044999,120]
[392107802,1761165042780,-500.0,0.00044999,120]
[392107803,1761165042789,-500.0,0.00044999,120]
[392107804,1761165042798,-500.0,0.00044999,120]
[392107805,1761165042807,-500.0,0.00044999,120]
[392107806,1761165042817,-500.0,0.00044999,120]
[392107807,1761165042826,-500.0,0.00044999,120]
[392107808,1761165042836,-500.0,0.00044999,120]
[392107809,1761165042845,-500.0,0.00044999,120]
[392107810,1761165042854,-500.0,0.00044999,120]
[392107811,1761165042863,-500.0,0.00044999,120]
[392107812,1761165042873,-500.0,0.00044999,120]
[392107813,1761165042882,-593.74760788,0.00044999,120]
[392107814,1761165042892,-500.0,0.00044999,120]
[392107815,1761165042901,-500.0,0.00044999,120]
[392107816,1761165042910,-500.0,0.00044999,120]
[392107817,1761165042921,-500.0,0.00044999,120]
[392107818,1761165042930,-500.0,0.00044999,120]
[392107820,1761165042939,-500.0,0.00044999,120]
[392107821,1761165042948,-581.44128354,0.00044999,120]
[392107822,1761165042957,-50000.0,0.00045,45]
[392107823,1761165042966,-44820.05828629,0.00045,46]
[392107824,1761165042980,-270.00005,0.00045,46]
[392107825,1761165042991,-2157.92961323,0.00045,46]
[392107826,1761165043002,-336.3733244,0.00045,46]
[392107827,1761165043013,-285.88292188,0.00045,46]
[392107828,1761165043042,-418.54789703,0.00045,46]
[392107829,1761165043057,-1711.20790717,0.00045,46]
[392107831,1761165043066,-1384.95544189,0.00045,47]
[392107833,1761165043077,-442.0,0.00045,47]
[392107835,1761165043087,-2153.8,0.00045,47]
[392107836,1761165043107,-27669.780964,0.00045,47]
[392107837,1761165043119,-421.85952,0.00045,47]
[392107838,1761165043130,-17927.60407411,0.00045,47]
[392107839,1761165043140,-4901.87309385,0.00045,48]
[392107846,1761165043410,-71.47047154,0.00043852,2]
[392107847,1761165043423,-500.52952846,0.00043852,2]
[392107848,1761165043434,-648.72276787,0.00044099,50]
[392107849,1761165043448,-485.74255521,0.00044099,50]
[392107850,1761165043476,-80.68447386,0.00044099,50]
[392107851,1761165043510,-265.08692103,0.00044099,50]
[392107852,1761165046471,-42.79785174,0.00044099,50]
[392107853,1761165046483,-263.28187387,0.00044448,2]
[392107854,1761165046492,-167.02027439,0.00045,48]
[392107855,1761165046528,-28146.9999999,0.00045,48]
[392107856,1761165046627,-16784.10663186,0.00045,48]
[392107857,1761165046637,-50000.0,0.00045,48]
[392107859,1761165046647,-50000.0,0.00045,46]
[392107860,1761165046656,-42198.33964775,0.00045,18]
[392107861,1761165046665,-148294.0457353,0.00045,120]
[392107862,1761165046681,-2934.38759559,0.00045,120]
[392107863,1761165046694,-500.0,0.00045,120]
[392107866,1761165087520,500.0,0.000356,2]
[392107867,1761165111422,174.79554245,0.000348,120]
[392107868,1761165112484,174.79554245,0.000358,120]
[392107869,1761165113374,174.79554245,0.000369,120]
[392107870,1761165114114,174.79554245,0.00038,120]
[392107871,1761165114808,174.79554245,0.000391,120]
[392107872,1761165135430,500.0,0.00033327,7]
[392107873,1761165147093,184.2975,0.00031433,2]
[392107874,1761165147748,527.95780828,0.00030402,7]
[392107876,1761165303316,-219.85421918,0.00024932,2]
[392107877,1761165310130,-151.60749575,0.00024932,2]
[392107878,1761165317632,-128.53828507,0.00024932,2]
[392107879,1761165317655,-32.59292311,0.00025,2]
[392107880,1761165333299,-163.70091378,0.00025,2]
[392107881,1761165348262,-286.29908622,0.00025,2]
[392107882,1761165458293,319.0,0.00027397,120]
[392107884,1761165543765,2500.0,0.00025285,120]
[392107885,1761165543873,2601.31422881,0.00026702,120]
[392107911,1761165843326,-297.63213983,0.00024932,2]
[392107920,1761165911697,-202.36786017,0.00024932,2]
[392107922,1761165918349,-150.41353813,0.00025,2]
[392107923,1761165918371,-95.51471068,0.00025236,2]
[392107924,1761165920887,-262.61373224,0.00025236,2]
[392107925,1761165920907,-24.9092526,0.00025471,2]
[392107929,1761165942124,-959.27155667,0.00025371,2]
[392107936,1761166034098,-426.13462771,0.00025371,2]
[392107937,1761166034118,-178.36,0.00025571,2]
[392107938,1761166034138,-992.502761,0.00027287,2]
[392107939,1761166034158,-1058.2134367,0.00027425,120]